[Event "*** Titled Tuesday Blitz"]
[Site "Chess.com"]
[Date "2020.05.05"]
[Round "3"]
[White "Kapibara_Warri0r"]
[Black "InitiatingASC"]
[Result "0-1"]
[WhiteElo "2084"]
[BlackElo "2325"]
[TimeControl "180+1"]
[EndTime "10:30:11 PDT"]
[Termination "InitiatingASC won on time"]

1. e4 {[%clk 0:03:00.9]} 1... c5 {[%clk 0:02:59.6]} 2. Nf3 {[%clk 0:03:00.6]}
2... Nc6 {[%clk 0:02:59.7]} 3. d4 {[%clk 0:03:00.3]} 3... cxd4 {[%clk
0:03:00.6]} 4. Nxd4 {[%clk 0:02:59.9]} 4... Nf6 {[%clk 0:03:00.9]} 5. Nc3 {[%clk
0:02:59.2]} 5... h6 {[%clk 0:03:01.3]} 6. Be3 {[%clk 0:02:49.9]} 6... e5 {[%clk
0:03:00.9]} 7. Ndb5 {[%clk 0:02:49.4]} 7... a6 {[%clk 0:03:01.3]} 8. Nd6+ {[%clk
0:02:46.5]} 8... Bxd6 {[%clk 0:03:00.8]} 9. Qxd6 {[%clk 0:02:47.1]} 9... Qe7
{[%clk 0:03:01.7]} 10. Qxe7+ {[%clk 0:02:41.3]} 10... Kxe7 {[%clk 0:03:02.6]}
11. Bc4 {[%clk 0:02:38.7]} 11... d6 {[%clk 0:03:01.1]} 12. Bd5 {[%clk
0:02:33.5]} 12... Be6 {[%clk 0:02:59.5]} 13. O-O-O {[%clk 0:02:29.6]} 13... Bxd5
{[%clk 0:02:44.5]} 14. Nxd5+ {[%clk 0:02:26.5]} 14... Nxd5 {[%clk 0:02:43.8]}
15. Rxd5 {[%clk 0:02:25.3]} 15... Rhd8 {[%clk 0:02:40.4]} 16. a3 {[%clk
0:02:21.2]} 16... Ke6 {[%clk 0:02:36.3]} 17. Rhd1 {[%clk 0:02:19.1]} 17... Ne7
{[%clk 0:02:33.3]} 18. R5d3 {[%clk 0:02:14.6]} 18... f5 {[%clk 0:02:27.8]} 19.
f3 {[%clk 0:01:56.6]} 19... Rac8 {[%clk 0:02:21.3]} 20. Bb6 {[%clk 0:01:51.9]}
20... Rd7 {[%clk 0:02:12]} 21. a4 {[%clk 0:01:50.8]} 21... d5 {[%clk 0:02:06.1]}
22. exd5+ {[%clk 0:01:42.3]} 22... Rxd5 {[%clk 0:02:05.9]} 23. a5 {[%clk
0:01:33.7]} 23... Rc4 {[%clk 0:01:53.3]} 24. Kb1 {[%clk 0:01:29.3]} 24... Rxd3
{[%clk 0:01:47.9]} 25. Rxd3 {[%clk 0:01:28.7]} 25... Nd5 {[%clk 0:01:48]} 26.
Rb3 {[%clk 0:01:21.3]} 26... Rh4 {[%clk 0:01:36.4]} 27. h3 {[%clk 0:01:20.3]}
27... Rb4 {[%clk 0:01:35.8]} 28. Rxb4 {[%clk 0:01:17.3]} 28... Nxb4 {[%clk
0:01:36]} 29. c3 {[%clk 0:01:15.7]} 29... Nd3 {[%clk 0:01:35.3]} 30. g3 {[%clk
0:00:59.2]} 30... g5 {[%clk 0:01:30.5]} 31. Be3 {[%clk 0:00:49]} 31... Ne1
{[%clk 0:01:25.2]} 32. f4 {[%clk 0:00:46.4]} 32... exf4 {[%clk 0:01:16.8]} 33.
gxf4 {[%clk 0:00:35.3]} 33... Ng2 {[%clk 0:01:10.6]} 34. Bf2 {[%clk 0:00:34]}
34... Nxf4 {[%clk 0:01:09.1]} 35. h4 {[%clk 0:00:34.2]} 35... g4 {[%clk
0:01:05]} 36. Kc2 {[%clk 0:00:32.9]} 36... h5 {[%clk 0:01:03.3]} 37. Kd2 {[%clk
0:00:31.4]} 37... Ke5 {[%clk 0:01:00.4]} 38. Bg3 {[%clk 0:00:30]} 38... Ke4
{[%clk 0:00:58.8]} 39. b4 {[%clk 0:00:28.6]} 39... Nd5 {[%clk 0:00:52.4]} 40.
Bd6 {[%clk 0:00:25]} 40... Ne3 {[%clk 0:00:45.9]} 41. Ke2 {[%clk 0:00:19.7]}
41... f4 {[%clk 0:00:44.9]} 42. Kf2 {[%clk 0:00:14.7]} 42... g3+ {[%clk
0:00:40.7]} 43. Kg1 {[%clk 0:00:12.3]} 43... Nf5 {[%clk 0:00:37.5]} 44. Bc7
{[%clk 0:00:10.9]} 44... Nxh4 {[%clk 0:00:35.9]} 45. c4 {[%clk 0:00:10]} 45...
Nf3+ {[%clk 0:00:30.9]} 46. Kg2 {[%clk 0:00:09.4]} 46... h4 {[%clk 0:00:29.6]}
47. b5 {[%clk 0:00:08.1]} 47... Ng5 {[%clk 0:00:25.7]} 48. bxa6 {[%clk
0:00:05.8]} 48... bxa6 {[%clk 0:00:25.6]} 49. c5 {[%clk 0:00:05.6]} 49... h3+
{[%clk 0:00:25.5]} 50. Kg1 {[%clk 0:00:04.9]} 50... Ne6 {[%clk 0:00:23.2]} 51.
Bd6 {[%clk 0:00:03.8]} 51... Kd5 {[%clk 0:00:21.3]} 0-1

[Event "*** Titled Tuesday Blitz"]
[Site "Chess.com"]
[Date "2020.05.05"]
[Round "3"]
[White "H3nriqueTV"]
[Black "Kingsman132"]
[Result "0-1"]
[WhiteElo "2160"]
[BlackElo "2367"]
[TimeControl "180+1"]
[EndTime "10:30:12 PDT"]
[Termination "Kingsman132 won by resignation"]

1. e4 {[%clk 0:03:00.9]} 1... e6 {[%clk 0:02:55.9]} 2. d4 {[%clk 0:02:56.8]}
2... d5 {[%clk 0:02:53.9]} 3. e5 {[%clk 0:02:57.3]} 3... c5 {[%clk 0:02:52.4]}
4. c3 {[%clk 0:02:57.9]} 4... Nc6 {[%clk 0:02:50.3]} 5. Nf3 {[%clk 0:02:58.5]}
5... Nge7 {[%clk 0:02:45.9]} 6. Bd3 {[%clk 0:02:56.9]} 6... cxd4 {[%clk
0:02:39.6]} 7. cxd4 {[%clk 0:02:57.1]} 7... Qb6 {[%clk 0:02:36.5]} 8. O-O {[%clk
0:02:57.1]} 8... Bd7 {[%clk 0:02:32.9]} 9. Nbd2 {[%clk 0:02:57.2]} 9... Nxd4
{[%clk 0:02:29.1]} 10. Nxd4 {[%clk 0:02:57.1]} 10... Qxd4 {[%clk 0:02:27.1]} 11.
Nf3 {[%clk 0:02:58]} 11... Qb6 {[%clk 0:02:24]} 12. Be3 {[%clk 0:02:58.5]} 12...
Qc7 {[%clk 0:02:16.9]} 13. Rc1 {[%clk 0:02:58.2]} 13... Nc6 {[%clk 0:02:14.5]}
14. a3 {[%clk 0:02:57.2]} 14... Be7 {[%clk 0:02:09.9]} 15. Qc2 {[%clk
0:02:56.2]} 15... Rc8 {[%clk 0:02:06.1]} 16. b4 {[%clk 0:02:55.1]} 16... Qb8
{[%clk 0:02:03.7]} 17. Qd2 {[%clk 0:02:54]} 17... O-O {[%clk 0:02:01.9]} 18. b5
{[%clk 0:02:47.3]} 18... Nxe5 {[%clk 0:02:00.2]} 19. Nxe5 {[%clk 0:02:46.8]}
19... Qxe5 {[%clk 0:01:57.4]} 20. Bd4 {[%clk 0:02:39.9]} 20... Qb8 {[%clk
0:01:50]} 21. Qe2 {[%clk 0:02:36.3]} 21... Rxc1 {[%clk 0:01:38.2]} 22. Rxc1
{[%clk 0:02:35.9]} 22... Rc8 {[%clk 0:01:36.3]} 23. Rf1 {[%clk 0:02:21.6]} 23...
Qc7 {[%clk 0:01:33.2]} 24. Qh5 {[%clk 0:02:17.5]} 24... g6 {[%clk 0:01:29.7]}
25. Qh6 {[%clk 0:02:14.6]} 25... Bf8 {[%clk 0:01:27.6]} 26. Qg5 {[%clk
0:02:11.2]} 26... Bg7 {[%clk 0:01:25.9]} 27. Bxg7 {[%clk 0:02:08.9]} 27... Kxg7
{[%clk 0:01:26.8]} 28. h4 {[%clk 0:02:09]} 28... f6 {[%clk 0:01:14.1]} 29. Qg4
{[%clk 0:02:07.7]} 29... e5 {[%clk 0:01:12.5]} 30. Qb4 {[%clk 0:01:58]} 30...
Qc5 {[%clk 0:01:07.8]} 31. Qa4 {[%clk 0:01:56.9]} 31... e4 {[%clk 0:01:05.1]}
32. Be2 {[%clk 0:01:54.7]} 32... d4 {[%clk 0:01:03.7]} 33. h5 {[%clk 0:01:53.8]}
33... d3 {[%clk 0:01:01.9]} 34. Bd1 {[%clk 0:01:34.3]} 34... Bxb5 {[%clk
0:00:57.6]} 35. Qxe4 {[%clk 0:01:32.3]} 35... d2 {[%clk 0:00:53.2]} 36. hxg6
{[%clk 0:01:11.4]} 36... hxg6 {[%clk 0:00:49.7]} 37. Qe6 {[%clk 0:00:28]} 37...
Bxf1 {[%clk 0:00:41.3]} 38. Qd7+ {[%clk 0:00:28]} 38... Kf8 {[%clk 0:00:36.9]}
39. Kxf1 {[%clk 0:00:27.8]} 39... Re8 {[%clk 0:00:22.7]} 40. Qxd2 {[%clk
0:00:24.1]} 40... Qc4+ {[%clk 0:00:20.5]} 41. Kg1 {[%clk 0:00:24]} 41... Qe4
{[%clk 0:00:16.7]} 42. Qd6+ {[%clk 0:00:21.1]} 42... Qe7 {[%clk 0:00:16.7]} 43.
Qxe7+ {[%clk 0:00:20.4]} 43... Rxe7 {[%clk 0:00:16.3]} 44. Bf3 {[%clk
0:00:20.2]} 44... Re1+ {[%clk 0:00:15.7]} 45. Kh2 {[%clk 0:00:20.4]} 45... b6
{[%clk 0:00:16]} 46. a4 {[%clk 0:00:20.5]} 46... Ke7 {[%clk 0:00:16.5]} 47. Bc6
{[%clk 0:00:20.9]} 47... Ra1 {[%clk 0:00:16.8]} 48. Bb5 {[%clk 0:00:21.8]} 48...
Kd6 {[%clk 0:00:17]} 49. Kg3 {[%clk 0:00:21.9]} 49... Kc5 {[%clk 0:00:17.1]} 50.
f4 {[%clk 0:00:22.6]} 50... a6 {[%clk 0:00:17.3]} 51. Be8 {[%clk 0:00:22.5]}
51... b5 {[%clk 0:00:16.1]} 52. axb5 {[%clk 0:00:21.9]} 52... axb5 {[%clk
0:00:16.4]} 53. Bxg6 {[%clk 0:00:22.8]} 53... b4 {[%clk 0:00:16.6]} 54. Kg4
{[%clk 0:00:23.2]} 54... b3 {[%clk 0:00:16.8]} 55. Kf5 {[%clk 0:00:23.8]} 55...
Rf1 {[%clk 0:00:15.3]} 56. Kxf6 {[%clk 0:00:24.7]} 56... Rxf4+ {[%clk
0:00:15.3]} 57. Kg5 {[%clk 0:00:25]} 57... Rf1 {[%clk 0:00:14.3]} 58. g4 {[%clk
0:00:25.3]} 58... Rg1 {[%clk 0:00:14.6]} 59. Kf4 {[%clk 0:00:25.3]} 59... b2
{[%clk 0:00:14.5]} 60. g5 {[%clk 0:00:25.8]} 60... Kd6 {[%clk 0:00:14.4]} 61.
Bb1 {[%clk 0:00:26.7]} 61... Rxb1 {[%clk 0:00:13.6]} 0-1

[Event "*** Titled Tuesday Blitz"]
[Site "Chess.com"]
[Date "2020.05.05"]
[Round "3"]
[White "DaggiGretarsson"]
[Black "isla88"]
[Result "1-0"]
[WhiteElo "2523"]
[BlackElo "2289"]
[TimeControl "180+1"]
[EndTime "10:30:15 PDT"]
[Termination "DaggiGretarsson won by resignation"]

1. d4 {[%clk 0:03:00.9]} 1... Nf6 {[%clk 0:02:59.3]} 2. c4 {[%clk 0:03:00.3]}
2... e5 {[%clk 0:02:58.7]} 3. dxe5 {[%clk 0:02:59.5]} 3... Ng4 {[%clk
0:02:58.9]} 4. Bf4 {[%clk 0:02:58.5]} 4... g5 {[%clk 0:02:58.5]} 5. Bd2 {[%clk
0:02:57.6]} 5... Bg7 {[%clk 0:02:58.5]} 6. Nf3 {[%clk 0:02:52.6]} 6... Nxe5
{[%clk 0:02:53]} 7. Nxe5 {[%clk 0:02:14.5]} 7... Bxe5 {[%clk 0:02:52.2]} 8. Bc3
{[%clk 0:02:14.4]} 8... Qe7 {[%clk 0:02:41.2]} 9. h4 {[%clk 0:02:09.9]} 9... g4
{[%clk 0:02:38]} 10. g3 {[%clk 0:02:09.6]} 10... d6 {[%clk 0:02:27]} 11. Bg2
{[%clk 0:02:09.6]} 11... Nc6 {[%clk 0:02:26]} 12. O-O {[%clk 0:02:09.1]} 12...
Be6 {[%clk 0:02:21.7]} 13. Qb3 {[%clk 0:02:00]} 13... Bc8 {[%clk 0:01:54.6]} 14.
Bxe5 {[%clk 0:01:35.3]} 14... Qxe5 {[%clk 0:01:48.2]} 15. Nc3 {[%clk 0:01:35.4]}
15... Nd4 {[%clk 0:01:39.7]} 16. Qd1 {[%clk 0:01:33.2]} 16... O-O {[%clk
0:01:31.2]} 17. e3 {[%clk 0:01:25]} 17... Nf3+ {[%clk 0:00:51.1]} 18. Bxf3
{[%clk 0:01:23.8]} 18... gxf3 {[%clk 0:00:52]} 19. Qxf3 {[%clk 0:01:23.7]} 19...
c6 {[%clk 0:00:49.8]} 20. Rfd1 {[%clk 0:01:21.5]} 20... Be6 {[%clk 0:00:48]} 21.
Rd4 {[%clk 0:01:21]} 21... Kh8 {[%clk 0:00:47]} 22. Rad1 {[%clk 0:01:19.2]}
22... Rad8 {[%clk 0:00:46.1]} 23. Qf4 {[%clk 0:01:15.7]} 23... Qxf4 {[%clk
0:00:37]} 24. Rxf4 {[%clk 0:01:15.2]} 24... Kg7 {[%clk 0:00:35.1]} 25. b3 {[%clk
0:01:10.3]} 25... Rd7 {[%clk 0:00:33.3]} 26. Rfd4 {[%clk 0:01:07]} 26... Rfd8
{[%clk 0:00:32.7]} 27. f3 {[%clk 0:00:50.4]} 27... Kf6 {[%clk 0:00:32.2]} 28.
Kf2 {[%clk 0:00:50.5]} 28... Ke7 {[%clk 0:00:32.4]} 29. g4 {[%clk 0:00:47.4]}
29... f5 {[%clk 0:00:31.3]} 30. g5 {[%clk 0:00:46.3]} 30... Bf7 {[%clk
0:00:30.6]} 31. Ne2 {[%clk 0:00:45.4]} 31... d5 {[%clk 0:00:29.5]} 32. cxd5
{[%clk 0:00:44.6]} 32... Bxd5 {[%clk 0:00:28.5]} 33. Nf4 {[%clk 0:00:42.7]}
33... Bf7 {[%clk 0:00:28.5]} 34. Rxd7+ {[%clk 0:00:41.8]} 34... Rxd7 {[%clk
0:00:29.4]} 35. Rxd7+ {[%clk 0:00:41.3]} 35... Kxd7 {[%clk 0:00:30.3]} 36. Nd3
{[%clk 0:00:39.1]} 36... Kd6 {[%clk 0:00:27.7]} 37. Kg3 {[%clk 0:00:39.1]} 37...
a5 {[%clk 0:00:24.5]} 38. Kf4 {[%clk 0:00:38.9]} 38... b5 {[%clk 0:00:23.2]} 39.
Ne5 {[%clk 0:00:36.9]} 39... Be6 {[%clk 0:00:17.5]} 40. h5 {[%clk 0:00:36.5]}
40... a4 {[%clk 0:00:17.6]} 41. bxa4 {[%clk 0:00:34.4]} 41... bxa4 {[%clk
0:00:16.3]} 42. a3 {[%clk 0:00:29.3]} 42... c5 {[%clk 0:00:16.7]} 43. g6 {[%clk
0:00:29]} 43... hxg6 {[%clk 0:00:15.9]} 44. h6 {[%clk 0:00:28.3]} 44... Bg8
{[%clk 0:00:15.8]} 45. Nxg6 {[%clk 0:00:28.3]} 45... c4 {[%clk 0:00:14.4]} 46.
e4 {[%clk 0:00:28.5]} 46... c3 {[%clk 0:00:13.5]} 47. Ke3 {[%clk 0:00:28.5]}
47... fxe4 {[%clk 0:00:10.7]} 48. fxe4 {[%clk 0:00:28.4]} 48... Bh7 {[%clk
0:00:10.8]} 49. Nf8 {[%clk 0:00:28]} 49... Bxe4 {[%clk 0:00:08.1]} 50. h7 {[%clk
0:00:25.6]} 50... Bxh7 {[%clk 0:00:08]} 51. Nxh7 {[%clk 0:00:25.7]} 51... Kc5
{[%clk 0:00:07.8]} 52. Kd3 {[%clk 0:00:25.8]} 52... c2 {[%clk 0:00:07.6]} 53.
Kxc2 {[%clk 0:00:25.9]} 53... Kc4 {[%clk 0:00:08.5]} 54. Nf6 {[%clk 0:00:25.9]}
54... Kd4 {[%clk 0:00:09.2]} 55. Nd7 {[%clk 0:00:25.6]} 55... Kc4 {[%clk
0:00:10.1]} 56. Ne5+ {[%clk 0:00:25.3]} 56... Kd4 {[%clk 0:00:09.6]} 57. Nd3
{[%clk 0:00:25.3]} 57... Kc4 {[%clk 0:00:10.4]} 58. Nb2+ {[%clk 0:00:22]} 58...
Kb5 {[%clk 0:00:10.7]} 59. Kc3 {[%clk 0:00:21.8]} 59... Ka5 {[%clk 0:00:10.8]}
60. Kc4 {[%clk 0:00:21.6]} 1-0

[Event "*** Titled Tuesday Blitz"]
[Site "Chess.com"]
[Date "2020.05.05"]
[Round "3"]
[White "2165149677570"]
[Black "Djager97"]
[Result "1-0"]
[WhiteElo "2315"]
[BlackElo "2466"]
[TimeControl "180+1"]
[EndTime "10:30:15 PDT"]
[Termination "2165149677570 won by resignation"]

1. e4 {[%clk 0:03:00.9]} 1... e6 {[%clk 0:02:59.4]} 2. d4 {[%clk 0:03:00.7]}
2... d5 {[%clk 0:02:59.9]} 3. Nd2 {[%clk 0:03:00.9]} 3... c5 {[%clk 0:02:59.6]}
4. exd5 {[%clk 0:03:00.6]} 4... Qxd5 {[%clk 0:03:00.5]} 5. Ngf3 {[%clk
0:03:01.3]} 5... cxd4 {[%clk 0:03:00.7]} 6. Bc4 {[%clk 0:03:01.8]} 6... Qd6
{[%clk 0:03:01]} 7. O-O {[%clk 0:03:02.7]} 7... Nf6 {[%clk 0:03:01]} 8. Nb3
{[%clk 0:03:03]} 8... Nc6 {[%clk 0:03:01.6]} 9. Nbxd4 {[%clk 0:03:03.5]} 9...
Nxd4 {[%clk 0:03:02.5]} 10. Nxd4 {[%clk 0:03:04.4]} 10... a6 {[%clk 0:03:00.8]}
11. Bb3 {[%clk 0:03:04.3]} 11... Bd7 {[%clk 0:03:01.1]} 12. c3 {[%clk
0:03:04.7]} 12... Qc7 {[%clk 0:02:59.2]} 13. Qf3 {[%clk 0:03:04.9]} 13... Bd6
{[%clk 0:02:52.4]} 14. h3 {[%clk 0:03:00.9]} 14... O-O-O {[%clk 0:02:50.6]} 15.
Be3 {[%clk 0:02:47.8]} 15... h6 {[%clk 0:02:42.3]} 16. Rac1 {[%clk 0:02:43.1]}
16... Be5 {[%clk 0:02:32.6]} 17. Rfd1 {[%clk 0:02:29.4]} 17... g5 {[%clk
0:02:29.5]} 18. c4 {[%clk 0:02:04.6]} 18... Rhg8 {[%clk 0:01:19.6]} 19. c5
{[%clk 0:01:36.2]} 19... Bc6 {[%clk 0:01:19.4]} 20. Nxc6 {[%clk 0:01:31.8]}
20... Qxc6 {[%clk 0:01:20.3]} 21. Qxc6+ {[%clk 0:01:25.2]} 21... bxc6 {[%clk
0:01:21.2]} 22. Bc4 {[%clk 0:01:24.1]} 22... Kb7 {[%clk 0:01:18.6]} 23. b4
{[%clk 0:01:23.4]} 23... Nd5 {[%clk 0:01:07.5]} 24. Bd4 {[%clk 0:01:23.2]} 24...
Bxd4 {[%clk 0:01:00.4]} 25. Rxd4 {[%clk 0:01:24.1]} 25... Nc7 {[%clk 0:00:41.5]}
26. Rcd1 {[%clk 0:01:19.6]} 26... Rxd4 {[%clk 0:00:38.1]} 27. Rxd4 {[%clk
0:01:20.5]} 27... Kc8 {[%clk 0:00:34.2]} 28. Rd6 {[%clk 0:01:16.9]} 28... Rd8
{[%clk 0:00:28.4]} 29. Rxc6 {[%clk 0:00:49.2]} 29... Rd1+ {[%clk 0:00:27.8]} 30.
Kh2 {[%clk 0:00:48.6]} 30... Kd7 {[%clk 0:00:21.5]} 31. Rb6 {[%clk 0:00:45.6]}
31... Rd4 {[%clk 0:00:17.2]} 32. Bb3 {[%clk 0:00:34.1]} 32... Rd2 {[%clk
0:00:09.7]} 33. Kg3 {[%clk 0:00:33]} 33... f5 {[%clk 0:00:08.5]} 34. Bc4 {[%clk
0:00:29]} 34... Rd4 {[%clk 0:00:05.1]} 35. Bf1 {[%clk 0:00:26.8]} 35... h5
{[%clk 0:00:03.9]} 36. a4 {[%clk 0:00:26.4]} 36... h4+ {[%clk 0:00:03.8]} 37.
Kh2 {[%clk 0:00:26.5]} 37... Nd5 {[%clk 0:00:04.2]} 38. Rb7+ {[%clk 0:00:24.1]}
38... Kc6 {[%clk 0:00:04.1]} 39. Bxa6 {[%clk 0:00:23.8]} 39... Nxb4 {[%clk
0:00:04.3]} 40. Rb6+ {[%clk 0:00:22]} 40... Kxc5 {[%clk 0:00:04.3]} 41. Rb5+
{[%clk 0:00:21.2]} 41... Kc6 {[%clk 0:00:02.9]} 42. Bb7+ {[%clk 0:00:21.5]}
42... Kc7 {[%clk 0:00:02.6]} 43. a5 {[%clk 0:00:21.9]} 43... Nd5 {[%clk
0:00:02.3]} 44. a6 {[%clk 0:00:20.7]} 44... Nb6 {[%clk 0:00:02.5]} 45. a7 {[%clk
0:00:20.4]} 45... Kxb7 {[%clk 0:00:01.8]} 46. Rxb6+ {[%clk 0:00:20.8]} 46...
Kxb6 {[%clk 0:00:02.2]} 47. a8=Q {[%clk 0:00:20.3]} 47... Rd5 {[%clk 0:00:03.1]}
48. Qb8+ {[%clk 0:00:20.1]} 48... Kc5 {[%clk 0:00:03.6]} 49. Qf8+ {[%clk
0:00:20.1]} 49... Kd4 {[%clk 0:00:03.6]} 50. Qg7+ {[%clk 0:00:20.3]} 50... Ke4
{[%clk 0:00:03.9]} 51. Qxg5 {[%clk 0:00:20.5]} 51... e5 {[%clk 0:00:04.8]} 52.
Qxh4+ {[%clk 0:00:20.4]} 52... f4 {[%clk 0:00:05.7]} 53. Qh7+ {[%clk 0:00:19.8]}
53... Kd4 {[%clk 0:00:06.6]} 54. f3 {[%clk 0:00:19.9]} 54... Ke3 {[%clk
0:00:06.7]} 55. Qe4+ {[%clk 0:00:19.9]} 1-0

[Event "*** Titled Tuesday Blitz"]
[Site "Chess.com"]
[Date "2020.05.05"]
[Round "3"]
[White "Antipov_Mikhail_Al"]
[Black "viktorskliarov"]
[Result "1-0"]
[WhiteElo "2871"]
[BlackElo "2574"]
[TimeControl "180+1"]
[EndTime "10:30:16 PDT"]
[Termination "Antipov_Mikhail_Al won by resignation"]

1. e4 {[%clk 0:03:00.8]} 1... c5 {[%clk 0:02:59.4]} 2. Nf3 {[%clk 0:03:00.8]}
2... Nc6 {[%clk 0:02:58.7]} 3. Bb5 {[%clk 0:02:59.3]} 3... e6 {[%clk 0:02:58.4]}
4. b3 {[%clk 0:02:58.2]} 4... Nge7 {[%clk 0:02:57.3]} 5. Bb2 {[%clk 0:02:58]}
5... a6 {[%clk 0:02:57.7]} 6. Bxc6 {[%clk 0:02:58]} 6... Nxc6 {[%clk 0:02:58]}
7. O-O {[%clk 0:02:57.3]} 7... d6 {[%clk 0:02:50.8]} 8. d4 {[%clk 0:02:51.4]}
8... cxd4 {[%clk 0:02:50.3]} 9. Nxd4 {[%clk 0:02:52.3]} 9... Nxd4 {[%clk
0:02:49.1]} 10. Bxd4 {[%clk 0:02:45.1]} 10... e5 {[%clk 0:02:48.2]} 11. Be3
{[%clk 0:02:45.2]} 11... Be7 {[%clk 0:02:47.3]} 12. c4 {[%clk 0:02:42.7]} 12...
O-O {[%clk 0:02:46.1]} 13. Nc3 {[%clk 0:02:43.1]} 13... Be6 {[%clk 0:02:38.7]}
14. Qd2 {[%clk 0:02:39.7]} 14... Rc8 {[%clk 0:02:37.6]} 15. Rfd1 {[%clk
0:02:37.6]} 15... f5 {[%clk 0:02:26.3]} 16. exf5 {[%clk 0:02:36.5]} 16... Rxf5
{[%clk 0:02:26.2]} 17. Ne4 {[%clk 0:02:26.1]} 17... Rc6 {[%clk 0:02:04.7]} 18.
Rac1 {[%clk 0:02:24.7]} 18... Rf7 {[%clk 0:01:42.5]} 19. Rc3 {[%clk 0:02:20.6]}
19... Qc8 {[%clk 0:01:26.6]} 20. f3 {[%clk 0:02:05.9]} 20... Bf5 {[%clk
0:01:14.5]} 21. Ng3 {[%clk 0:01:43]} 21... Bg6 {[%clk 0:01:08.1]} 22. Rcc1
{[%clk 0:01:36.5]} 22... h5 {[%clk 0:00:54.9]} 23. h3 {[%clk 0:01:30.7]} 23...
h4 {[%clk 0:00:29.6]} 24. Ne4 {[%clk 0:01:30.7]} 24... Bxe4 {[%clk 0:00:28.6]}
25. fxe4 {[%clk 0:01:31.6]} 25... Qe6 {[%clk 0:00:26.4]} 26. Qd5 {[%clk
0:01:29.6]} 26... Qxd5 {[%clk 0:00:26.2]} 27. cxd5 {[%clk 0:01:27.7]} 27... Rxc1
{[%clk 0:00:25.3]} 28. Rxc1 {[%clk 0:01:28.6]} 28... Bf8 {[%clk 0:00:22.2]} 29.
Rc8 {[%clk 0:01:19.9]} 29... Kh7 {[%clk 0:00:21.7]} 30. Bg5 {[%clk 0:01:18.7]}
30... Kg6 {[%clk 0:00:19.8]} 31. Bxh4 {[%clk 0:01:18.4]} 31... Be7 {[%clk
0:00:15.6]} 32. Bxe7 {[%clk 0:01:18.2]} 32... Rxe7 {[%clk 0:00:16.5]} 33. Rd8
{[%clk 0:01:18.7]} 33... Kg5 {[%clk 0:00:16.6]} 34. Rxd6 {[%clk 0:01:03.9]}
34... Kf4 {[%clk 0:00:16.5]} 35. Re6 {[%clk 0:00:58.6]} 35... Rc7 {[%clk
0:00:16.4]} 36. d6 {[%clk 0:00:58.6]} 36... Rc1+ {[%clk 0:00:16.4]} 37. Kh2
{[%clk 0:00:59.2]} 37... Kxe4 {[%clk 0:00:16.7]} 38. Rg6 {[%clk 0:00:57.1]}
38... Rd1 {[%clk 0:00:16.1]} 39. Rxg7 {[%clk 0:00:54.9]} 39... Rxd6 {[%clk
0:00:14.9]} 40. Rxb7 {[%clk 0:00:55.2]} 40... Kd3 {[%clk 0:00:15.1]} 41. Re7
{[%clk 0:00:42.2]} 41... e4 {[%clk 0:00:15.4]} 42. g4 {[%clk 0:00:42.9]} 42...
e3 {[%clk 0:00:15.9]} 43. g5 {[%clk 0:00:29.5]} 43... e2 {[%clk 0:00:16.3]} 44.
Kg3 {[%clk 0:00:22.5]} 44... Rd4 {[%clk 0:00:15.6]} 45. Kf3 {[%clk 0:00:20.3]}
45... Rh4 {[%clk 0:00:12.2]} 46. Re3+ {[%clk 0:00:20.1]} 46... Kd4 {[%clk
0:00:11.3]} 47. Rxe2 {[%clk 0:00:20.8]} 47... Rxh3+ {[%clk 0:00:11.4]} 48. Kg4
{[%clk 0:00:21]} 48... Rh1 {[%clk 0:00:12]} 49. Rg2 {[%clk 0:00:20.7]} 49... Ke5
{[%clk 0:00:11]} 50. Re2+ {[%clk 0:00:20.6]} 50... Kd5 {[%clk 0:00:11.5]} 51. g6
{[%clk 0:00:21.2]} 51... a5 {[%clk 0:00:10.6]} 52. Kg5 {[%clk 0:00:19.3]} 52...
Rg1+ {[%clk 0:00:08.4]} 53. Kf6 {[%clk 0:00:19.6]} 53... Kc5 {[%clk 0:00:08.8]}
54. g7 {[%clk 0:00:19.5]} 54... Kb4 {[%clk 0:00:09.3]} 55. Rf2 {[%clk
0:00:19.3]} 55... Ka3 {[%clk 0:00:09]} 56. Kf7 {[%clk 0:00:19.6]} 56... a4
{[%clk 0:00:09.2]} 57. bxa4 {[%clk 0:00:19.5]} 57... Rxg7+ {[%clk 0:00:09.3]}
58. Kxg7 {[%clk 0:00:20.4]} 58... Kxa4 {[%clk 0:00:09.6]} 59. Kf6 {[%clk
0:00:21]} 1-0